{"text_format":"1","workbook":"xlsx","n_sheets":3,"sheets":["Поступления от иной деят ","Субсидия  на вып мун задания","Субсидия  на иные цели"],"not_rendered":{"charts":0,"images":0,"macros":0,"external_links":0,"defined_names":0,"comments":0,"pivot_tables":0},"unopened":[],"bounds":{"document_bytes":16777216,"sheet_cells":100000,"rows_first":2000,"rows_last":500,"rows_between":2000,"halvings":0,"cell_chars":16384,"cell_head_chars":4096},"cells_cut":0,"cells_raw":0,"read":"whole","date_system":"1900"}

{"sheet":"Поступления от иной деят ","index":0,"n_rows":122,"n_cols":18,"rows_kept":122,"cut":false,"hidden":false,"merged":[[52,14,52,15],[111,0,111,1],[0,0,0,10],[3,2,4,2],[3,4,4,4],[3,5,4,5],[3,6,4,6],[2,4,2,6],[2,8,2,10],[3,8,4,8],[3,9,4,9],[3,10,4,10],[3,3,4,3],[2,0,4,0],[3,1,4,1],[2,1,2,3],[3,7,4,7]]}
["Отчет о выполнении планафинансово-хозяйственной деятельности МАОУ       \"Лицей №21\"                         по состоянию на 01.06.2018 г."]
[]
[null,"Всего на  2018 год",null,null,"Получено на 01.06.2018 г.",null,null,null,"Израсходовано"]
[null,"Всего","Поступления от оказания муниципальными учреждением (подразделением) услуг (выполнения работ) , предоставление которых для физических и юридических лиц осуществляется на платной основе","Поступления от иной приносящей доход деятельности, всего:","Всего","Поступления от оказания муниципальными учреждением (подразделением) услуг (выполнения работ) , предоставление которых для физических и юридических лиц осуществляется на платной основе","Поступления от иной приносящей доход деятельности, всего: 120","Поступления от иной приносящей доход деятельности, 180","Всего","Поступления от оказания муниципальными учреждением (подразделением) услуг (выполнения работ) , предоставление которых для физических и юридических лиц осуществляется на платной основе","Поступления от иной приносящей доход деятельности, всего:"]
[]
["Неиспользованный остаток на 01.01.2017",{"$f":"C6+D6","v":185397.42},185397.42]
["Доходы , всего",{"$f":"C7+D7","v":2630205.3600000003},{"$f":"SUM(C9:C26)","v":2622205.3600000003},{"$f":"SUM(D9:D26)","v":8000},{"$f":"F7+G7","v":1505839.18},{"$f":"SUM(F9:F26)","v":1501728.0599999998},{"$f":"SUM(G9:G26)","v":4111.12},null,{"$f":"J7+K7","v":0},{"$f":"SUM(J9:J26)","v":0},{"$f":"SUM(K9:K26)","v":0}]
["в т.ч.",0,null,null,0,null,null,null,0]
["Родительские средства на сод.детей в лагере",263250,263250,null,263250,263250,null,null,0]
["Обучение русскому языку",186704.08,186704.08,null,99649.95,99649.95,null,null,0]
["Обучение математике",377126.40000000002,377126.40000000002,null,172836,172836,null,null,0]
["Обучение английскому языку",64699,64699,null,37932.449999999997,37932.449999999997,null,null,0]
["Подготовка к школе",804268.3,804268.3,null,492794.65,492794.65,null,null,0]
["Обучение химии",0,null,null,0,null,null,null,0]
["Обучение работе на ПК",0,null,null,0,null,null,null,0]
["Обучение физике",27788.080000000002,27788.080000000002,null,9216.5,9216.5,null,null,0]
["Обучение обществознанию",113393,113393,null,{"$f":"F17+G17","v":48054.5},48054.5,null,null,0]
["Обучение биологии",6111,6111,null,6790,6790,null,null,0,null,null,null,null," "]
["Тренаженый зал",9506,9506,null,8245,8245,null,null,0]
["Обучение истории",57715,57715,null,36326.5,36326.5,null,null,0]
["Умники и умницы",681914,681914,null,326632.51,326632.51,null,null,0]
["Обучение информатики",22067.5,22067.5,null,0,null,null,null,0]
["Группа пед присмотра",7663,7663,null,0,null,null,null,0]
["аренда",6565.69,null,8000,4111.12,null,4111.12,null,0]
["стипендия",0,null,null,0,null,null,null,0]
["ндс",0,null,null,0,null,null,null,0]
["Спонсорские средства",0,null,null,0,null,null,null,0]
[null,0,null,null,0,null,null,null,0]
[null,0,null,null,0,null,null,null,0]
[null,0,null,null,0,null,null,null,0]
[null,0,null,null,0,null,null,null,0]
["Расходы , всего",2815602.7800000007,{"$f":"C33+C37+C39+C43+C46+C53+C66+C90+C98+C104+C44","v":2807602.7800000007},{"$f":"D33+D37+D39+D43+D46+D53+D66+D90+D98+D104","v":8000},1505839.1800000002,{"$f":"F33+F37+F39+F43+F46+F53+F66+F90+F98+F104+F44","v":1501728.06},{"$f":"G33+G37+G39+G43+G46+G53+G66+G90+G98+G104","v":4111.12},null,1320462.6400000001,{"$f":"J33+J37+J39+J43+J46+J53+J66+J90+J98+J104+J44","v":1316351.52},{"$f":"K33+K37+K39+K43+K46+K53+K66+K90+K98+K104","v":4111.12}]
["Заработная плата, всего",1270293.99,1270293.99,null,630000,630000,null,null,625774.19999999995,625774.19999999995]
["В т.ч. По нормативу, расчету ",0,{"$f":"SUM(D34:E34)","v":0},null,0,{"$f":"SUM(G34:I34)","v":0},null,null,0,{"$f":"SUM(K34:L34)","v":0}]
["награждение победителей конкурса \"Лучший  воспитатель, ПДО\"",0,{"$f":"SUM(D35:E35)","v":0},null,0,{"$f":"SUM(G35:I35)","v":0},null,null,0,{"$f":"SUM(K35:L35)","v":0}]
["в т.ч. педагогические работники",903653.23,903653.23,null,400000,400000,null,null,392238.62,392238.62,null,null,null,null,null," "]
[null,0,null,null,0,null,null,null,0,null,null,null,null,null," "]
[null,0,null,null,0,null,null,null,0,null,null,null,null,null," "]
["Начисления на оплату труда, всего",383628.79,383628.79,null,185000,185000,null,null,{"$f":"J39+K39","v":183372.48},183372.48]
["В т.ч. По нормативу, расчету ",0,{"$f":"SUM(D40:E40)","v":0},null,0,{"$f":"SUM(G40:I40)","v":0},null,null,0,{"$f":"SUM(K40:L40)","v":0}]
["награждение победителей конкурса \"Лучший  воспитатель, ПДО\"",0,{"$f":"SUM(D41:E41)","v":0},null,0,{"$f":"SUM(G41:I41)","v":0},null,null,0,{"$f":"SUM(K41:L41)","v":0}]
["в т.ч. педагогические работники",277389.13,277389.13,null,145000,145000,null,null,133315.22,133315.22]
[null,0,null,null,0,null,null,null,0]
["услуги связи",7929.6,7929.6,null,3000,3000,null,null,2643.2,2643.2]
["Транспортные услуги",0,{"$f":"SUM(D45:E45)","v":0},null,0,{"$f":"SUM(G45:I45)","v":0},null,null,0,{"$f":"SUM(K45:L45)","v":0}]
["Коммунальные услуги, всего",7532.06,4532.0600000000004,3000,5688.2,4000,1688.2,null,3264.6400000000003,1576.44,1688.2]
["Свет ОАО \"ТОСК\" ",0,{"$f":"SUM(D47:E47)","v":0},null,0,{"$f":"SUM(G47:I47)","v":0},null,null,0,{"$f":"SUM(K47:L47)","v":0}]
["Тепло, всего",0,0,{"$f":"D49+D50","v":0},0,0,{"$f":"G49+G50","v":0},null,0,0,{"$f":"K49+K50","v":0}]
["ОАО \"ТКС\"",0,0,null,0,0,null,null,0,0]
["МУП \"ТИС\"",0,0,null,0,0,null,null,0,0]
["Вода ОАО \"ТКС\"",0,0,null,0,0,null,null,0,0]
["Арендная плата ",0,0,null,0,0,null,null,0,0]
["Расходы, услуги по содержанию имущества, всего",11998,{"$f":"SUM(C54:C65)","v":11998},{"$f":"SUM(D54:D65)","v":0},11998,{"$f":"SUM(F54:F65)","v":11998},{"$f":"SUM(G54:G65)","v":0},null,11998,{"$f":"SUM(J54:J65)","v":11998},{"$f":"SUM(K54:K65)","v":0},null,null," "]
["противопожарные мероприятия",11998,11998,null,11998,11998,null,null,11998,11998]
["из них электроизмер.работы",0,null,null,0,null,null,null,0]
[null,0,null,null,0,null,null,null,0]
[null,0,null,null,0,null,null,null,0]
[null,0,null,null,0,null,null,null,0]
[null,0,null,null,0,null,null,null,0]
[null,0,null,null,0,null,null,null,0]
[null,0,null,null,0,null,null,null,0]
[null,0,null,null,0,null,null,null,0]
[null,0,null,null,0,null,null,null,0]
[null,0,null,null,0,null,null,null,0]
[null,0,null,null,0,null,null,null,0]
["Прочие работы, услуги , всего",537426.03,{"$f":"SUM(C67:C89)","v":537426.03},{"$f":"SUM(D67:D89)","v":0},358740.26,{"$f":"SUM(F67:F89)","v":358740.26},{"$f":"SUM(G67:G89)","v":0},null,{"$f":"SUM(I67:I89)","v":358740.26},{"$f":"SUM(J67:J89)","v":358740.26},{"$f":"SUM(K67:K89)","v":0}]
["заправка катриджей",7000,7000,null,11020,11020,null,null,11020,11020]
["спец оценка условий труда",0,null,null,0,null,null,null,0]
["текущий ремонт здания",20000,20000,null,0,null,null,null,0]
["аттестаты",4300,4300,null,1650.26,1650.26,null,null,1650.26,1650.26]
["питание в пришкольном лагере",252315,252315,null,{"$f":"F71+G71","v":252315},252315,null,null,{"$f":"J71+K71","v":252315},252315]
["подписка",24269.7,24269.7,null,465,465,null,null,465,465]
[null,0,null,null,0,null,null,null,0]
[null,0,null,null,0,null,null,null,0]
[null,0,null,null,0,null,null,null,0]
["лицензирование, аккредитация",25300,25300,null,6900,6900,null,null,6900,6900]
["противопожарные мероприятия",0,null,null,0,null,null,null,0]
[null,0,null,null,0,null,null,null,0]
[null,0,null,null,0,null,null,null,0]
[null,0,null,null,0,null,null,null,0]
[null,{"$f":"C81+D81","v":0},null,null,0,null,null,null,0]
["программное обеспечение",121821.33,121821.33,null,15200,15200,null,null,15200,15200]
["оформление тех документации",13620,13620,null,26390,26390,null,null,26390,26390]
["ремонт оборудования",19360,19360,null,0,null,null,null,0]
["скминар",0,null,null,0,null,null,null,0]
["реставрация",22240,22240,null,0,null,null,null,0]
["курсы",7200,7200,null,0,null,null,null,0]
["удаление наледи",20000,20000,null,44800,44800,null,null,44800,44800,null,null,null,null," "]
[null,0,null,null,0,null,null,null,0]
["Прочие расходы, всего",56768.43,{"$f":"C91+C92+C93+C94+C95+C96+C97","v":56768.43},{"$f":"D91+D92+D93+D94+D95+D96+D97","v":0},4630.83,{"$f":"F91+F92+F93+F94+F95+F96+F97","v":4630.83},{"$f":"G91+G92+G93+G94+G95+G96+G97","v":0},null,4630.83,{"$f":"J91+J92+J93+J94+J95+J96+J97","v":4630.83},{"$f":"K91+K92+K93+K94+K95+K96+K97","v":0}]
["стипендия",0,null,null,0,null,null,null,0]
["ндс",0,null,null,0,null,null,null,0]
["госпошлина",56768.43,56768.43,null,4630.83,4630.83,null,null,4630.83,4630.83]
[null,0,null,null,0,null,null,null,0]
[null,0,null,null,0,null,null,null,0]
[null,0,null,null,0,null,null,null,0]
["ндс",0,null,null,0,null,null,null,0]
["Увеличение стоимости основных средств, всего",165714.76,{"$f":"SUM(C99:C103)","v":165714.76},{"$f":"SUM(D99:D103)","v":0},3513,{"$f":"SUM(F99:F103)","v":3513},{"$f":"SUM(G99:G103)","v":0},null,3513,{"$f":"SUM(J99:J103)","v":3513},{"$f":"SUM(K99:K103)","v":0}]
["медали",1180,1180,null,0,null,null,null,0]
["оргтехника",57084.76,57084.76,null,0,null,null,null,0]
["флаги",12300,12300,null,1563,1563,null,null,1563,1563,null,null,null,null,null,null,null," "]
["тепловентилятор",19650,19650,null,1950,1950,null,null,1950,1950]
["мебель",75500,75500,null,0,null,null,null,{"$f":"J103+K103","v":0}]
["Увеличение стоимости материальных запасов, всего",374311.12,{"$f":"SUM(C105:C111)","v":369311.12},{"$f":"SUM(D105:D111)","v":5000},303268.88999999996,{"$f":"SUM(F105:F111)","v":300845.96999999997},{"$f":"SUM(G105:G111)","v":2422.92},null,126526.03,{"$f":"SUM(J105:J111)","v":124103.11},{"$f":"SUM(K105:K111)","v":2422.92}]
["прочее",371911.12,366911.12,5000,303268.88999999996,300845.96999999997,2422.92,null,126526.03,124103.11,2422.92]
["журналы",2400,2400,null,0,null,null,null,0]
[null,0,null,null,0,null,null,null,0]
[null,0,null,null,0,null,null,null,0]
[null,0,null,null,0,null,null,null,0]
[null,0,null,null,0,null,null,null,0]
[null,0,null,null,0,null,null,null,0]
["Неиспользованный остаток на 01.01.2018",null,null,null,null,"  ",null,null,{"$f":"SUM(B6+E7-I32)","v":370773.95999999973},{"$f":"SUM(C6+F7-J32)","v":370773.95999999973},{"$f":"SUM(D6+G7-K32)","v":0}]
["Примечание: сумма  возврат фсс 7122,95"]
["Руководитель",null,"В.Г.Рудник"]
["Главный бухгалтер",null,"Н.А.Прыткова"]
[]
[null,null,null,null,null," "]
[]
[]
[]
[]
[" "]

{"sheet":"Субсидия  на вып мун задания","index":1,"n_rows":95,"n_cols":33,"rows_kept":95,"cut":false,"hidden":false,"merged":[[3,4,4,4],[3,12,4,12],[3,16,4,16],[3,15,4,15],[3,13,4,13],[3,5,4,5],[3,14,4,14],[3,22,4,22],[3,23,4,23],[3,20,4,20],[3,10,4,10],[3,11,4,11],[3,19,4,19],[5,2,88,2],[5,1,88,1],[3,17,3,18],[2,0,4,0],[3,25,4,25],[3,3,4,3],[3,8,3,9],[3,24,4,24],[2,2,4,2],[3,6,4,6],[2,12,2,20],[2,3,2,11],[2,21,2,29],[0,0,0,29],[3,28,4,28],[3,29,4,29],[3,7,4,7],[2,1,4,1],[3,21,4,21],[3,26,3,27]]}
["Отчет о выполнении плана финансово-хозяйственной деятельности МАОУ   \"Лицей №21\"                                        по состоянию 01.06.2018"]
[]
[null,"ВР","КОСГУ ","Всего на  2018 год",null,null,null,null,null,null,null,null,"Получено на 01.06.2018 г.",null,null,null,null,null,null,null,null,"Израсходовано"]
[null,null,null,"Всего","Реализация образовательных программ общего образования (обеспечение деятельности организаций)                   07 02 01 2 01 81030","Организация летнего отдыха в каникулярное время(город пришк лагерь) 0707 01 2 06 S8180 (ГОРОД)"," Организация отдыха детей в каникулярное время(область пришкольный лагерь)              0707 01 2 06 S8180 (ОБЛАСТЬ)","Приобретение (изготовление) образовательной организацией бланков документов об образовании   01 2 01 N7880","Обеспечение государственных гарантий прав граждан на получение общедоступного и бесплатного общего образования",null,null,null,"Всего","Реализация образовательных программ общего образования (обеспечение деятельности организаций)                   07 02 01 2 01 81030","Организация летнего отдыха в каникулярное время(город пришк лагерь) 0702 01 2 06 S8180 (ГОРОД)"," Организация отдыха детей в каникулярное время(область пришкольный лагерь)              0707 01 2 06 S8180 (ОБЛАСТЬ)","Приобретение (изготовление) образовательной организацией бланков документов об образовании   01 2 01 N7880","Обеспечение государственных гарантий прав граждан на получение общедоступного и бесплатного общего образования",null,null,null,"Всего","Реализация образовательных программ общего образования (обеспечение деятельности организаций)                   07 02 01 2 01 81030","Организация летнего отдыха в каникулярное время(город пришк лагерь) 0702 01 2 06 S8180 (ГОРОД)"," Организация отдыха детей в каникулярное время(область пришкольный лагерь)              0707 01 2 06 S8180 (ОБЛАСТЬ)","Приобретение (изготовление) образовательной организацией бланков документов об образовании   01 2 01 N7880","Обеспечение государственных гарантий прав граждан на получение общедоступного и бесплатного общего образования"]
[null,null,null,null,null,null,null,null,"Расходы на оплату труда педагогических работников                   07 02 01 2 01 N6300","Прочие расходы, связанные с обеспечением учебного процесса                             07 02 01 2 01 N6300",null,null,null,null,null,null,null,"Расходы на оплату труда педагогических работников                   07 02 01 2 01 N6300","Прочие расходы, связанные с обеспечением учебного процесса                             07 02 01 2 01 N6300",null,null,null,null,null,null,null,"Расходы на оплату труда педагогических работников                   07 02 01 2 01 N6300","Прочие расходы, связанные с обеспечением учебного процесса                             07 02 01 2 01 N6300"]
["Субсидия бюджетным учреждениям на финансовое обеспечение муниципального задания на оказание муниципальных услуг, всего",621,241,{"$f":"SUM(E6:L6)","v":38486842.030000001},{"$f":"E7+E12+E13+E16+E18+E25+E44+E69+E80+E86","v":4971171.7799999993},{"$f":"F7+F12+F13+F16+F18+F25+F44+F69+F80+F86","v":277283.21000000002},{"$f":"G7+G12+G13+G16+G18+G25+G44+G69+G80+G86","v":224930},23353.74,{"$f":"I7+I12+I13+I16+I18+I25+I44+I69+I80+I86","v":26955300},6034803.2999999998,{"$f":"K7+K12+K13+K16+K18+K25+K44+K69+K80+K86","v":0},0,{"$f":"SUM(N6:U6)","v":15110854.439999999},{"$f":"N7+N12+N13+N16+N18+N25+N44+N69+N80+N86","v":1358270},0,157451,23353.74,12056200,1515579.7,0,0,{"$f":"SUM(W6:AD6)","v":{"$error":"#VALUE!"}},{"$f":"W7+W12+W13+W16+W18+W25+W44+W69+W80+W86","v":1358270},{"$error":"#VALUE!"},157451,23353.74,10015746.17,1489799.17,0,0,null,null," "]
["Заработная плата, всего",null,null,{"$f":"SUM(E7:L7)","v":23579800},null,null,null,null,20579800,3000000,null,null,{"$f":"SUM(N7:U7)","v":10302000},null,null,null,null,9251900,1050100,null,null,{"$f":"SUM(W7:AD7)","v":8896178.4800000004},null,null,null,null,7862936.3300000001,1033242.15]
["В т.ч. По нормативу, расчету ",null,null,0,null,null,null,null,null,null,null,null,0,null,null,null,null,null,null,null,null,0]
["награждение победителей конкурса \"Лучший  воспитатель, ПДО\"",null,null,0,null,null,null,null,null,null,null,null,0,null,null,null,null,null,null,null,null,0]
["в т.ч педагогические работники",null,null,20579800,null,null,null,null,20579800,null,null,null,9251900,null,null,null,null,9251900,null,null,null,7862936.3300000001,null,null,null,null,7862936.3300000001]
["           воспитатели",null,null,110000,null,null,null,null,110000,null,null,null,39000,null,null,null,null,39000,null,null,null,39000,null,null,null,null,39000]
["Прочие выплаты",null,null,0,null,null,null,null,null,null,null,null,0,null,null,null,null,null,null,null,null,0]
["Начисления на оплату труда, всего",null,null,7268300,null,null,null,null,6375500,892800,null,null,3102400,null,null,null,null,2804300,298100,null,null,2441987.1599999997,null,null,null,null,2152809.84,289177.32]
["В т.ч. По нормативу, расчету ",null,null,0,null,null,null,null,null,null,null,null,0,null,null,null,null,null,null,null,null,0]
["награждение победителей конкурса \"Лучший  воспитатель, ПДО\"",null,null,0,null,null,null,null,null,null,null,null,0,null,null,null,null,null,null,null,null,0]
["Услуги связи",null,null,177900,35400,null,null,null,null,142500,null,null,71100,11700,null,null,null,null,59400,null,null,71100,11700,null,null,null,null,59400]
["Транспортные услуги",null,null,0,null,null,null,null,null,null,null,null,0,null,null,null,null,null,null,null,null,0]
["Коммунальные услуги, всего",null,null,2123664.7799999998,2123664.7799999998,null,null,null,null,null,null,null,408500,408500,null,null,null,null,null,null,null,408500,408500]
["Свет ОАО \"ТОСК\" ",null,null,0,null,null,null,null,null,null,null,null,0,null,null,null,null,null,null,null,null,0]
["Тепло, всего",null,null,0,null,null,null,{"$f":"H21+H22","v":0},{"$f":"I21+I22","v":0},{"$f":"J21+J22","v":0},null,null,0,null,null,null,{"$f":"Q21+Q22","v":0},{"$f":"R21+R22","v":0},{"$f":"S21+S22","v":0},null,null,0,null,null,null,{"$f":"Z21+Z22","v":0},{"$f":"AA21+AA22","v":0},{"$f":"AB21+AB22","v":0}]
["ОАО \"ТКС\"",null,null,0,null,null,null,null,null,null,null,null,0,null,null,null,null,null,null,null,null,0]
["МУП \"ТИС\"",null,null,0,null,null,null,null,null,null,null,null,0,null,null,null,null,null,null,null,null,0]
["Вода ОАО \"ТКС\"",null,null,0,null,null,null,null,null,null,null,null,0,null,null,null,null,null,null,null,null,0]
["Арендная плата ",null,null,0,null,null,null,null,null,null,null,null,0,null,null,null,null,null,null,null,null,0]
["Расходы, услуги по содержанию имущества, всего",null,null,333300,{"$f":"E26+E27+E28+E29+E30+E40+E41+E42+E43","v":333300},{"$f":"F26+F27+F28+F29+F30+F40+F41+F42+F43","v":0},0,0,0,0,0,0,33400,{"$f":"N26+N27+N28+N29+N30+N40+N41+N42+N43","v":33400},0,0,0,0,0,0,0,{"$error":"#VALUE!"},{"$f":"W26+W27+W28+W29+W30+W40+W41+W42+W43","v":33400},{"$error":"#VALUE!"},0,0,0,0,0,0]
["Текущий ремонтремонт оборудования школьных столовых ",null,null,30600,30600,null,null,null,null,null,null,null,0,null,null,null,null,null,null,null,null,0]
["вывоз мусора",null,null,78500,78500,null,null,null,null,null,null,null,26300,26300,null,null,null,null,null,null,null,26300,26300]
["дератизация",null,null,3400,3400,null,null,null,null,null,null,null,800,800,null,null,null,null,null,null,null,800,800]
["техническое обслуживание школьных столовых",null,null,92800,92800,null,null,null,null,null,null,null,0,null,null,null,null,null,null,null,null,0]
["противопожарные мероприятия",null,null,118000,{"$f":"SUM(E31+E32+E33+E34+E35+E36+E37+E38+E39)","v":118000},0,0,0,0,0,0,0,6300,{"$f":"SUM(N31+N32+N33+N34+N35+N36+N37+N38+N39)","v":6300},0,0,0,0,0,0,0,{"$error":"#VALUE!"},{"$f":"SUM(W31+W32+W33+W34+W35+W36+W37+W38+W39)","v":6300},{"$error":"#VALUE!"},0,0,0,0,0,0]
["из них  техническое перед опов при пожаре",null,null,36000,36000,null,null,null,null,null,null,null,2800,2800,null,null,null,null,null,null,null,2800,2800]
["          перезарядка огнетушителей",null,null,0,null,null,null,null,null,null,null,null,0,null,null,null,null,null,null,null,null,0]
["          обслуживание трев.кнопки",null,null,7000,7000,null,null,null,null,null,null,null,500,500,null,null,null,null,null,null,null,500,500]
["электроизм. Работы",null,null,39000,39000,null,null,null,null,null,null,null,0,null,null,null,null,null,null,null,null,0]
["        Техобслуживание АПС",null,null,36000,36000,null,null,null,null,null,null,null,3000,3000,null,null,null,null,null,null,null,3000,3000]
["огнезащитная обработка",null,null,0,null,null,null,null,null,null,null,null,0,null,null,null,null,null,null,null,null,0]
[null,null,null,0,null,null,null,null,null,null,null,null,0,null,null,null,null,null,null,null,null,0]
["испытание пожарных кранов",null,null,0,null,null,null,null,null,null,null,null,0,null,null,null,null,null,null,null,null,0,null," "]
["ТО системы оповещ. О пож",null,null,0,null,null,null,null,null,null,null,null,0,null,null,null,null,null,null,null,null,0]
["Заправка катриджей",null,null,0,null,null,null,null,null,null,null,null,0,null,null,null,null,null,null,null,null,0]
["перемотка пожарных рукавов",null,null,10000,10000,null,null,null,null,null,null,null,0,null,null,null,null,null,null,null,null,0]
[null,null,null,0,null,null,null,null,null,null,null,null,0,null,null,null,null,null,null,null,null,0]
[null,null,null,0,null,null,null,null,null,null,null,null,0,null,null,null,null,null,null,null,null,0]
["Прочие работы, услуги , всего",null,null,953537.02999999991,{"$f":"SUM(E45:E68)","v":307100},{"$f":"SUM(F45:F68)","v":277283.21000000002},224930,23353.74,0,120870.08,0,0,292184.44,{"$f":"SUM(N45:N68)","v":3400},0,157451,23353.74,0,107979.7,0,0,292184.44,{"$f":"SUM(W45:W68)","v":3400},0,157451,23353.74,0,107979.7,0,0]
["возмещение затрат МУП \"Школьник\", транспортные расходы лагеря",null,null,0,null,null,null,null,null,null,null,null,0,null,null,null,null,null,null,null,null,0]
["питание  в пришкольном лагере",null,null,502213.21,null,277283.21000000002,224930,null,null,null,null,null,157451,null,null,157451,null,null,null,null,null,157451,null,null,157451]
["льготное питание",null,null,0,null,null,null,null,null,null,null,null,0,null,null,null,null,null,null,null,null,0]
["Установка видеонаблюдения",null,null,0,null,null,null,null,null,null,null,null,0,null,null,null,null,null,null,null,null,0]
["медосмотр",null,null,160900,160900,null,null,null,null,null,null,null,0,null,null,null,null,null,null,null,null,0]
["лицензирование, аккредитация",null,null,0,null,null,null,null,null,null,null,null,0,null,null,null,null,null,null,null,null,0]
["аттестация раб мест",null,null,0,null,null,null,null,null,null,null,null,0,null,null,null,null,null,null,null,null,0]
["противопожарные мероприятия(монтаж)",null,null,0,null,null,null,null,null,null,null,null,0,null,null,null,null,null,null,null,null,0]
["группа быстрого реагирования",null,null,38000,38000,null,null,null,null,null,null,null,0,null,null,null,null,null,null,null,null,0]
["Оформление тех документации",null,null,0,null,null,null,null,null,null,null,null,0,null,null,null,null,null,null,null,null,0]
["программное обеспечение",null,null,102900,30900,null,null,null,null,72000,null,null,67928.5,null,null,null,null,null,67928.5,null,null,67928.5,null,null,null,null,null,67928.5]
["Поверка счетчиков",null,null,0,null,null,null,null,null,null,null,null,0,null,null,null,null,null,null,null,null,0]
[" группа быстрого реагирования)",null,null,0,null,null,null,null,null,null,null,null,0,null,null,null,null,null,null,null,null,0]
["семейное обучение",null,null,7870.08,null,null,null,null,null,7870.08,null,null,0,null,null,null,null,null,null,null,null,0]
["Дистанционное обучение",null,null,0,null,null,null,null,null,null,null,null,0,null,null,null,null,null,null,null,null,0]
["охрана",null,null,62600,62600,null,null,null,null,null,null,null,3400,3400,null,null,null,null,null,null,null,3400,3400]
["обследование дефектов зданий",null,null,0,null,null,null,null,null,null,null,null,0,null,null,null,null,null,null,null,null,0]
["монтаж системы видеонаблюдения",null,null,0,null,null,null,null,null,null,null,null,0,null,null,null,null,null,null,null,null,0]
["регистрация земельного участка",null,null,0,null,null,null,null,null,null,null,null,0,null,null,null,null,null,null,null,null,0]
["подписка",null,null,4232.3,4232.3,null,null,null,null,null,null,null,0,null,null,null,null,null,null,null,null,0]
["др. расходы, проф.пробы",null,null,41000,null,null,null,null,null,41000,null,null,40051.199999999997,null,null,null,null,null,40051.199999999997,null,null,40051.199999999997,null,null,null,null,null,40051.199999999997]
["Пособия на соц.помощь населению",null,null,0,null,null,null,null,null,null,null,null,0,null,null,null,null,null,null,null,null,0]
["другие расходы",null,null,10467.700000000001,10467.700000000001,null,null,null,null,null,null,null,0,null,null,null,null,null,null,null,null,0]
["аттестаты",null,null,23353.74,null,null,null,23353.74,null,null,null,null,23353.74,null,null,null,23353.74,null,null,null,null,23353.74,null,null,null,23353.74]
["Прочие расходы, всего",null,null,1770107,{"$f":"E70+E71+E72+E73+E74+E75+E76+E78+E79","v":1770107},{"$f":"F70+F71+F72+F73+F74+F75+F76+F78+F79","v":0},0,0,0,0,0,0,901270,{"$f":"N70+N71+N72+N73+N74+N75+N76+N78+N79","v":901270},0,0,0,0,0,0,0,901270,{"$f":"W70+W71+W72+W73+W74+W75+W76+W78+W79","v":901270},0,0,0,0,0,0,0]
["стипендия",null,null,0,null,null,null,null,null,null,null,null,0,null,null,null,null,null,null,null,null,0]
["разовые премии",null,null,{"$f":"SUM(E71:L71)","v":0},null,null,null,null,null,null,null,null,{"$f":"SUM(N71:U71)","v":0},null,null,null,null,null,null,null,null,{"$f":"SUM(W71:AD71)","v":0}]
["экологические платежи",null,null,0,null,null,null,null,null,null,null,null,0,null,null,null,null,null,null,null,null,0]
["Транспортный налог",null,null,0,null,null,null,null,null,null,null,null,0,null,null,null,null,null,null,null,null,0]
["Налог на имущество",null,null,140689,140689,null,null,null,null,null,null,null,93052,93052,null,null,null,null,null,null,null,93052,93052]
["земельный налог",null,null,1616418,1616418,null,null,null,null,null,null,null,808218,808218,null,null,null,null,null,null,null,808218,808218]
["Госпошлина",null,null,13000,13000,null,null,null,null,null,null,null,0,null,null,null,null,null,null,null,null,0]
["пени, штрафы",null,null,0,null,null,null,null,null,null,null,null,0,null,null,null,null,null,null,null,null,0]
[null,null,null,0,null,null,null,null,null,null,null,null,0,null,null,null,null,null,null,null,null,0]
[null,null,null,0,null,null,null,null,null,null,null,null,0,null,null,null,null,null,null,null,null,0]
["Увеличение стоимости основных средств, всего",null,null,2238633.2199999997,{"$f":"E82+E83+E84+E85","v":360000},{"$f":"F82+F83+F84+F85","v":0},0,0,0,1878633.22,0,0,0,{"$f":"N82+N83+N84+N85","v":0},{"$f":"O82+O83+O84+O85","v":0},0,0,0,0,0,0,0,{"$f":"W82+W83+W84+W85","v":0},{"$f":"X82+X83+X84+X85","v":0},0,0,0,0,0,0]
["питание дошкольников в школах-садах",null,null,0,null,null,null,null,null,null,null,null,0,null,null,null,null,null,null,null,null,0]
["прочие основные средства",null,null,0,null,null,null,null,null,null,null,null,0,null,null,null,null,null,null,null,null,0]
["учебники",null,null,1878633.22,null,null,null,null,null,1878633.22,null,null,0,null,null,null,null,null,null,null,null,0]
["мебель",null,null,360000,360000,null,null,null,null,null,null,null,0,null,null,null,null,null,null,null,null,0]
[null,null,null,0,null,null,null,null,null,null,null,null,0,null,null,null,null,null,null,null,null,0]
["Увеличение стоимости материальных запасов, всего",null,null,41600,{"$f":"E87+E88+E89","v":41600},{"$f":"F87+F88+F89","v":0},0,0,0,0,0,0,0,{"$f":"N87+N88+N89","v":0},0,0,0,0,0,0,0,0,{"$f":"W87+W88+W89","v":0},0,0,0,0,0,0,0]
["прочие",null,null,41600,41600,null,null,null,null,null,null,null,0,null,null,null,null,null,null,null,null,0]
[null,null,null,0,null,null,null,null,null,null,null,null,0,null,null,null,null,null,null,null,null,0]
[null,null,null,0,null,null,null,null,null,null,null,null,0,null,null,null,null,null,null,null,null,0]
[null,null,null,null,null,null,null,null,null,null,null,null,null,null,null,"возврат",null,null,null,null,null,null,null,null,"возврат"]
["Руководитель",null,null,null,"В.Г.Рудник"]
[]
["Главный бухгалтер",null,null,null,"Н.А.Прыткова"]
[]
[null," "]

{"sheet":"Субсидия  на иные цели","index":2,"n_rows":84,"n_cols":42,"rows_kept":84,"cut":false,"hidden":false,"merged":[[3,5,4,5],[3,6,4,6],[3,23,4,23],[3,24,4,24],[0,0,0,38],[2,0,4,0],[2,1,4,1],[2,2,4,2],[2,3,2,12],[2,16,2,25],[3,3,4,3],[3,4,4,4],[3,27,4,27],[3,26,4,26],[3,7,4,7],[3,8,4,8],[3,9,4,9],[3,10,4,10],[3,11,4,11],[3,25,4,25],[3,21,4,21],[3,22,4,22],[3,12,4,12],[3,16,4,16],[3,17,4,17],[3,18,4,18],[3,19,4,19],[3,20,4,20],[3,32,4,32],[3,33,4,33],[3,34,4,34],[5,1,76,1],[5,2,76,2],[3,13,4,13],[3,14,4,14],[3,15,4,15],[3,29,4,29],[3,28,4,28],[3,39,4,39],[3,40,4,40],[3,41,4,41],[2,29,2,41],[3,36,4,36],[3,37,4,37],[3,38,4,38],[3,35,4,35],[3,30,4,30],[3,31,4,31]]}
["Отчет о выполнении плана финансово-хозяйственной деятельности МАОУ                                       по состоянию на 01.06.2018г."]
[]
[null,"ВР","КОСГУ ","Всего на  2018 год",null,null,null,null,null,null,null,null,null,null,null,null,"Получено на 01.06.2018 г.",null,null,null,null,null,null,null,null,null,null,null,null,"Израсходовано"]
[null,null,null,"Всего","Субсидия на организацию и проведение мероприятий,направленных на реализацию федеральной целевой программы развития образования на 2016-2020 годы 0709 01 2 17 L4980","Субсидия на софинансирование мероприятий федеральной целевой программы развития образования на 2016-2020 годы 0709 01 2 17 R4980","Реализация образовательных программ общего образования (обеспечение деятельности организаций)                   07 02 01 2 01 81030","Обеспечение льготным питанием отдельных категорий обучающихся муниципальных общеобразовательных учреждений                               0702 01 2 06 S6310","Лучшие учителя  01 2 07 N6380","Ежемес выплаты стимул характера мол спец муниц общеобраз организ и единовремен денежн выплаты пед работн , заключившим трудовой договор с общеобр организ по основ месту работы 01 2 07 N6380","Капитальный ремонт и ремонт объектов муниципальной собственности                               07 02 01 2 13  88888","Обеспечение реализации мероприятий в сфере общего и дополнительного образования (питание малообеспеченных семей (область)             01 2 06 N6310","Обеспечение мер социальной поддержки многодетных семей в части предоставления бесплатного питания         01 2 06 N3170","Оплата труда работников, мун.орг-й, обеспечивающих техническую эксплуатацию зданий мун.общеобр.орг-й, подвоз обучающихся и на оплату услуг по охране объектов (ЧОП) 0709 01 2 09 S6520","Оплата труда работников, мун.орг-й, обеспечивающих техническую эксплуатацию зданий мун.общеобр.орг-й, подвоз обучающихся и на оплату услуг по охране объектов (ЧОП) 0709 01 2 09 S6520","оплата труда 120000","Всего","Субсидия на организацию и проведение мероприятий,направленных на реализацию федеральной целевой программы развития образования на 2016-2020 годы  0709 01 2 17 L4980","Субсидия на софинансирование мероприятий федеральной целевой программы развития образования на 2016-2020 годы 0709 01 2 17 R4980","Реализация образовательных программ общего образования (обеспечение деятельности организаций)                   07 02 01 2 01 81030","Обеспечение льготным питанием отдельных категорий обучающихся муниципальных общеобразовательных учреждений                               0702 01 2 06 S6310","Лучшие учителя  01 2 07 N 6380","Ежемес выплаты стимул характера мол спец муниц общеобраз организ и единовремен денежн выплаты пед работн , заключившим трудовой договор с общеобр организ по основ месту работы 01 2 07 N6380","Капитальный ремонт и ремонт объектов муниципальной собственности                               07 02 01 2 13  88888","Обеспечение реализации мероприятий в сфере общего и дополнительного образования (питание малообеспеченных семей (область)             01 2 06 N6310","Обеспечение мер социальной поддержки многодетных семей в части предоставления бесплатного питания         01 2 06 N3170","Оплата труда работников, мун.орг-й, обеспечивающих техническую эксплуатацию зданий мун.общеобр.орг-й, подвоз обучающихся и на оплату услуг по охране объектов (ЧОП) 0709 01 2 09 S6520","Оплата труда работников, мун.орг-й, обеспечивающих техническую эксплуатацию зданий мун.общеобр.орг-й, подвоз обучающихся и на оплату услуг по охране объектов (ЧОП) 0709 01 2 09 S6520","молодые учителя 120000","Всего","Субсидия на организацию и проведение мероприятий,направленных на реализацию федеральной целевой программы развития образования на 2016-2020 годы  0709 01 2 17 L4980","Субсидия на софинансирование мероприятий федеральной целевой программы развития образования на 2016-2020 годы 0709 01 2 17 R4980","Реализация образовательных программ общего образования (обеспечение деятельности организаций)                   07 02 01 2 01 81030","Обеспечение льготным питанием отдельных категорий обучающихся муниципальных общеобразовательных учреждений                               0702 01 2 06 S6310","Лучшие учителя  01 2 07 N6380","Ежемес выплаты стимул характера мол спец муниц общеобраз организ и единовремен денежн выплаты пед работн , заключившим трудовой договор с общеобр организ по основ месту работы 01 2 07 N6380","Капитальный ремонт и ремонт объектов муниципальной собственности                               07 02 01 2 13  88888","Обеспечение реализации мероприятий в сфере общего и дополнительного образования (питание малообеспеченных семей (область)             01 2 06 N6310","Обеспечение мер социальной поддержки многодетных семей в части предоставления бесплатного питания         01 2 06 N3170","Оплата труда работников, мун.орг-й, обеспечивающих техническую эксплуатацию зданий мун.общеобр.орг-й, подвоз обучающихся и на оплату услуг по охране объектов (ЧОП) 0709 01 2 09 S6520","Оплата труда работников, мун.орг-й, обеспечивающих техническую эксплуатацию зданий мун.общеобр.орг-й, подвоз обучающихся и на оплату услуг по охране объектов (ЧОП) 0709 01 2 09 S6520","молодые учителя 120000"]
[]
["Субсидия бюджетным учреждениям на иные цели, всего",622,241,{"$f":"E6+F6+G6+H6+I6+J6+K6+L6+M6+N6+O6+P6","v":4556627.2},{"$f":"E7+E12+E13+E16+E18+E25+E45+E61+E70","v":0},{"$f":"F7+F12+F13+F16+F18+F25+F45+F61+F70","v":0},330465.2,690250,0,91100,300000,1003700,459900,1664400,16812,0,{"$f":"R6+S6+T6+U6+V6+W6+X6+Y6+Z6+AA6+AB6+AC6","v":1808805.2},{"$f":"R7+R12+R13+R16+R18+R25+R45+R61+R70","v":0},0,330465.2,74300,0,39600,0,558000,241000,561502,3938,0,{"$f":"AE6+AF6+AG6+AH6+AI6+AJ6+AK6+AL6+AM6+AN6+AO6+AP6","v":1807570.19},{"$f":"AE7+AE12+AE13+AE16+AE18+AE25+AE45+AE61+AE70","v":0},0,330465.2,74300,0,38364.990000000005,0,558000,241000,561502,3938,0]
["Заработная плата, всего",null,null,70000,null,null,null,null,null,70000,null,null,null,null,null,null,30300,null,null,null,null,null,30300,null,null,null,null,null,null,29466.2,null,null,null,null,null,29466.2]
["В т.ч. По нормативу, расчету ",null,null,0,null,null,null,null,null,null,null,null,null,null,null,null,0,null,null,null,null,null,null,null,null,null,null,null,null,0]
["награждение победителей конкурса \"Лучший  воспитатель, ПДО\"",null,null,0,null,null,null,null,null,null,null,null,null,null,null,null,0,null,null,null,null,null,null,null,null,null,null,null,null,0]
["в т.ч.педагогические работники",null,null,70000,null,null,null,null,null,70000,null,null,null,null,null,null,30300,null,null,null,null,null,30300,null,null,null,null,null,null,29466.2,null,null,null,null,null,29466.2]
["         воспитатели",null,null,0,null,null,null,null,null,null,null,null,null,null,null,null,0,null,null,null,null,null,null,null,null,null,null,null,null,0]
["Прочие выплаты",null,null,0,null,null,null,null,null,null,null,null,null,null,null,null,0,null,null,null,null,null,null,null,null,null,null,null,null,0]
["Начисления на оплату труда, всего",null,null,21100,null,null,null,null,null,21100,null,null,null,null,null,null,9300,null,null,null,null,null,9300,null,null,null,null,null,null,8898.7900000000009,null,null,null,null,null,8898.7900000000009]
["В т.ч. По нормативу, расчету ",null,null,0,null,null,null,null,null,null,null,null,null,null,null,null,0,null,null,null,null,null,null,null,null,null,null,null,null,0]
["награждение победителей конкурса \"Лучший  воспитатель, ПДО\"",null,null,0,null,null,null,null,null,null,null,null,null,null,null,null,0,null,null,null,null,null,null,null,null,null,null,null,null,0]
["Услуги связи",null,null,0,null,null,null,null,null,null,null,null,null,null,null,null,0,null,null,null,null,null,null,null,null,null,null,null,null,0]
["Транспортные услуги",null,null,0,null,null,null,null,null,null,null,null,null,null,null,null,0,null,null,null,null,null,null,null,null,null,null,null,null,0]
["Коммунальные услуги, всего",null,null,199935.22,null,null,199935.22,null,null,null,null,null,null,null,null,null,199935.22,null,null,199935.22,null,null,null,null,null,null,null,null,null,199935.22,null,null,199935.22]
["Свет ОАО \"ТОСК\" ",null,null,0,null,null,null,null,null,null,null,null,null,null,null,null,0,null,null,null,null,null,null,null,null,null,null,null,null,0]
["Тепло, всего",null,null,0,null,null,null,{"$f":"H21+H22","v":0},null,{"$f":"J21+J22","v":0},null,{"$f":"L21+L22","v":0},{"$f":"M21+M22","v":0},null,null,null,0,null,null,null,{"$f":"U21+U22","v":0},null,{"$f":"W21+W22","v":0},null,{"$f":"Y21+Y22","v":0},{"$f":"Z21+Z22","v":0},null,null,null,0,null,null,null,{"$f":"AH21+AH22","v":0},null,{"$f":"AJ21+AJ22","v":0},null,{"$f":"AL21+AL22","v":0},{"$f":"AM21+AM22","v":0}]
["ОАО \"ТКС\"",null,null,0,null,null,null,null,null,null,null,null,null,null,null,null,0,null,null,null,null,null,null,null,null,null,null,null,null,0]
["МУП \"ТИС\"",null,null,0,null,null,null,null,null,null,null,null,null,null,null,null,0,null,null,null,null,null,null,null,null,null,null,null,null,0]
["Вода ОАО \"ТКС\"",null,null,0,null,null,null,null,null,null,null,null,null,null,null,null,0,null,null,null,null,null,null,null,null,null,null,null,null,0]
["Арендная плата ",null,null,0,null,null,null,null,null,null,null,null,null,null,null,null,0,null,null,null,null,null,null,null,null,null,null,null,null,0]
["Расходы, услуги по содержанию имущества, всего",null,null,322368,{"$f":"E26+E27+E28+E29+E30+E31+E37+E38+E39+E40+E41+E42+E43+E44","v":0},{"$f":"F26+F27+F28+F29+F30+F31+F37+F38+F39+F40+F41+F42+F43+F44","v":0},22368,0,0,0,300000,0,0,0,0,0,22368,{"$f":"R26+R27+R28+R29+R30+R31+R37+R38+R39+R40+R41+R42+R43+R44","v":0},0,22368,0,0,0,0,0,0,0,0,0,22368,{"$f":"AE26+AE27+AE28+AE29+AE30+AE31+AE37+AE38+AE39+AE40+AE41+AE42+AE43+AE44","v":0},0,22368,0,0,0,0,0,0,0,0,0]
["Текущий ремонт  и ТО оборудования",null,null,0,null,null,null,null,null,null,null,null,null,null,null,null,0,null,null,null,null,null,null,null,null,null,null,null,null,0]
["Ремонт учреждений",null,null,0,null,null,null,null,null,null,null,null,null,null,null,null,0,null,null,null,null,null,null,null,null,null,null,null,null,0]
["вывоз мусора",null,null,6400,null,null,6400,null,null,null,null,null,null,null,null,null,6400,null,null,6400,null,null,null,null,null,null,null,null,null,6400,null,null,6400]
["Ремонт АПС",null,null,0,null,null,null,null,null,null,null,null,null,null,null,null,0,null,null,null,null,null,null,null,null,null,null,null,null,0]
["Ремонт САО",null,null,0,null,null,null,null,null,null,null,null,null,null,null,null,0,null,null,null,null,null,null,null,null,null,null,null,null,0]
["противопожарные мероприятия",null,null,15968,{"$f":"SUM(E32:E36)","v":0},0,15968,0,0,0,0,0,0,0,0,0,15968,{"$f":"SUM(R32:R36)","v":0},0,15968,0,0,0,0,0,0,0,0,0,15968,{"$f":"SUM(AE32:AE36)","v":0},0,15968,0,0,0,0,0,0,0,0,0]
["из них:  Электроизмерительные работы",null,null,0,null,null,null,null,null,null,null,null,null,null,null,null,0,null,null,null,null,null,null,null,null,null,null,null,null,0]
["          перезарядка огнетушителей",null,null,0,null,null,null,null,null,null,null,null,null,null,null,null,0,null,null,null,null,null,null,null,null,null,null,null,null,0]
["          оповещение при пожаре",null,null,14000,null,null,14000,null,null,null,null,null,null,null,null,null,14000,null,null,14000,null,null,null,null,null,null,null,null,null,14000,null,null,14000]
["обслуживание тревожной кнопки",null,null,1968,null,null,1968,null,null,null,null,null,null,null,null,null,1968,null,null,1968,null,null,null,null,null,null,null,null,null,1968,null,null,1968]
["        Техобслуживание и ремонт АПС",null,null,0,null,null,null,null,null,null,null,null,null,null,null,null,0,null,null,null,null,null,null,null,null,null,null,null,null,0]
["Капитальный ремонт",null,null,300000,null,null,null,null,null,null,300000,null,null,null,null,null,0,null,null,null,null,null,null,null,null,null,null,null,null,0]
["Текущий ремонт здания",null,null,{"$f":"E38+F38+G38+H38+I38+J38+K38+L38+M38+N38+O38+P38","v":0},null,null,null,null,null,null,null,null,null,null,null,null,0,null,null,null,null,null,null,null,null,null,null,null,null,0]
["техобслуживание и проверка счетчиков",null,null,0,null,null,null,null,null,null,null,null,null,null,null,null,0,null,null,null,null,null,null,null,null,null,null,null,null,0]
["дератизация",null,null,0,null,null,null,null,null,null,null,null,null,null,null,null,0,null,null,null,null,null,null,null,null,null,null,null,null,0]
["Заправка катриджей",null,null,0,null,null,null,null,null,null,null,null,null,null,null,null,0,null,null,null,null,null,null,null,null,null,null,null,null,0]
["промывка системы отопления, установка приборов учета",null,null,0,null,null,null,null,null,null,null,null,null,null,null,null,0,null,null,null,null,null,null,null,null,null,null,null,null,0]
[null,null,null,0]
[null,null,null,0]
["Прочие работы, услуги , всего",null,null,3510023.98,{"$f":"E46+E47+E48+E49+E50+E51+E52+E53+E54+E55+E56+E57+E58+E59+E60","v":0},{"$f":"F46+F47+F48+F49+F50+F51+F52+F53+F54+F55+F56+F57+F58+F59+F60","v":0},12161.98,690250,0,0,0,666500,459900,1664400,16812,0,{"$f":"R45+S45+T45+U45+V45+W45+X45+Y45+Z45+AA45+AB45+AC45","v":1336536.28},{"$f":"R46+R47+R48+R49+R50+R51+R52+R53+R54+R55+R56+R57+R58+R59+R60","v":0},0,12161.98,74300,0,0,0,443634.3,241000,561502,3938,0,{"$f":"AE45+AF45+AG45+AH45+AI45+AJ45+AK45+AL45+AM45+AN45+AO45+AP45","v":1336536.28},{"$f":"AE46+AE47+AE48+AE49+AE50+AE51+AE52+AE53+AE54+AE55+AE56+AE57+AE58+AE59+AE60","v":0},0,12161.98,74300,0,0,0,443634.3,241000,561502,3938,0]
["Проф.переподготовка,повыш.квалификации,обучающий вебинар",null,null,0,null,null,null,null,null,null,null,null,null,null,null,null,0,null,null,null,null,null,null,null,null,null,null,null,null,0]
["питание  в пришкольном лагере",null,null,0,null,null,null,null,null,null,null,null,null,null,null,null,0,null,null,null,null,null,null,null,null,null,null,null,null,0]
["льготное питание",null,null,1816650,null,null,null,690250,null,null,null,666500,459900,null,null,null,758934.3,null,null,null,74300,null,null,null,443634.3,241000,null,null,null,758934.3,null,null,null,74300,null,null,null,443634.3,241000]
["аттестация раб мест",null,null,0,null,null,null,null,null,null,null,null,null,null,null,null,0,null,null,null,null,null,null,null,null,null,null,null,null,0]
["медосмотр",null,null,0,null,null,null,null,null,null,null,null,null,null,null,null,0,null,null,null,null,null,null,null,null,null,null,null,null,0]
["Монтаж системы передачи изв.о пож.",null,null,0,null,null,null,null,null,null,null,null,null,null,null,null,0,null,null,null,null,null,null,null,null,null,null,null,null,0]
["аттестация раб мест",null,null,0,null,null,null,null,null,null,null,null,null,null,null,null,0,null,null,null,null,null,null,null,null,null,null,null,null,0]
["Монтаж видеонаблюдения",null,null,0,null,null,null,null,null,null,null,null,null,null,null,null,0,null,null,null,null,null,null,null,null,null,null,null,null,0]
["инкассация",null,null,0,null,null,null,null,null,null,null,null,null,null,null,null,0,null,null,null,null,null,null,null,null,null,null,null,null,0]
["Оформление земли в собственность",null,null,0,null,null,null,null,null,null,null,null,null,null,null,null,0,null,null,null,null,null,null,null,null,null,null,null,null,0]
["программное обеспечение",null,null,0,null,null,null,null,null,null,null,null,null,null,null,null,0,null,null,null,null,null,null,null,null,null,null,null,null,0]
["оформление тех документации",null,null,0,null,null,null,null,null,null,null,null,null,null,null,null,0,null,null,null,null,null,null,null,null,null,null,null,null,0]
["охрана",null,null,1693373.98,null,null,12161.98,null,null,null,null,null,null,1664400,16812,null,577601.98,null,null,12161.98,null,null,null,null,null,null,561502,3938,null,577601.98,null,null,12161.98,null,null,null,null,null,null,561502,3938]
[null,null,null,0]
[null,null,null,0]
["Увеличение стоимости основных средств",null,null,96000,{"$f":"E62+E63+E64+E65+E66+E67+E68+E69","v":0},{"$f":"F62+F63+F64+F65+F66+F67+F68+F69","v":0},96000,0,0,0,0,0,0,0,0,0,{"$f":"R61+S61+T61+U61+V61+W61+X61+Y61+Z61+AA61+AB61+AC61","v":96000},{"$f":"R62+R63+R64+R65+R66+R67+R68+R69","v":0},0,96000,0,0,0,0,0,0,0,0,0,{"$f":"AE61+AF61+AG61+AH61+AI61+AJ61+AK61+AL61+AM61+AN61+AO61+AP61","v":96000},{"$f":"AE62+AE63+AE64+AE65+AE66+AE67+AE68+AE69","v":0},0,96000,0,0,0,0,0,0,0,0,0]
["курсы повышения квалиф.",null,null,0,null,null,null,null,null,null,null,null,null,null,null,null,0,null,null,null,null,null,null,null,null,null,null,null,null,0]
["обследование дефектов зданий",null,null,0,null,null,null,null,null,null,null,null,null,null,null,null,0,null,null,null,null,null,null,null,null,null,null,null,null,0]
["монтаж системы видеонаблюдения",null,null,0,null,null,null,null,null,null,null,null,null,null,null,null,0,null,null,null,null,null,null,null,null,null,null,null,null,0]
["регистрация земельного участка",null,null,0,null,null,null,null,null,null,null,null,null,null,null,null,0,null,null,null,null,null,null,null,null,null,null,null,null,0]
["мебель",null,null,0,null,null,null,null,null,null,null,null,null,null,null,null,0,null,null,null,null,null,null,null,null,null,null,null,null,0]
["др. расходы",null,null,0,null,null,null,null,null,null,null,null,null,null,null,null,0,null,null,null,null,null,null,null,null,null,null,null,null,0]
["установка ограждения",null,null,96000,null,null,96000,null,null,null,null,null,null,null,null,null,null,null,null,96000,null,null,null,null,null,null,null,null,null,null,null,null,96000]
[null,null,null,0]
["Увеличение материальных запасов, всего",null,null,{"$f":"E70+F70+G70+H70+I70+J70+K70+L70+M70+N70+O70+P70","v":337200},{"$f":"E71+E72+E73+E74+E75+E76+E77","v":0},{"$f":"F71+F72+F73+F74+F75+F76+F77","v":0},0,0,0,0,0,337200,0,0,0,0,{"$f":"R70+S70+T70+U70+V70+W70+X70+Y70+Z70+AA70+AB70+AC70","v":114365.7},{"$f":"R71+R72+R73+R74+R75+R76+R77","v":0},0,0,0,0,0,0,114365.7,0,0,0,0,{"$f":"AE70+AF70+AG70+AH70+AI70+AJ70+AK70+AL70+AM70+AN70+AO70+AP70","v":114365.7},{"$f":"AE71+AE72+AE73+AE74+AE75+AE76+AE77","v":0},0,0,0,0,0,0,114365.7,0,0,0,0]
["стипендия",null,null,0,null,null,null,null,null,null,null,null,null,null,null,null,0,null,null,null,null,null,null,null,null,null,null,null,null,0]
["разовые премии",null,null,0,null,null,null,null,null,null,null,null,null,null,null,null,0,null,null,null,null,null,null,null,null,null,null,null,null,0]
["зап.части",null,null,0,null,null,null,null,null,null,null,null,null,null,null,null,0,null,null,null,null,null,null,null,null,null,null,null,null,0]
["молоко",null,null,337200,null,null,null,null,null,null,null,337200,null,null,null,null,114365.7,null,null,null,null,null,null,null,114365.7,null,null,null,null,114365.7,null,null,null,null,null,null,null,114365.7]
["пени, штрафы",null,null,0,null,null,null,null,null,null,null,null,null,null,null,null,0,null,null,null,null,null,null,null,null,null,null,null,null,0]
[null,null,null,0,null,null,null,null,null,null,null,null,null,null,null,null,0,null,null,null,null,null,null,null,null,null,null,null,null,0]
[null,null,null,0,null,null,null,null,null,null,null,null,null,null,null,null,0,null,null,null,null,null,null,null,null,null,null,null,null,0]
[null,null,null,null,null,null," "]
["Руководитель",null,null,null,"В.Г.Рудник"]
[]
["Главный бухгалтер",null,null,null,"Н.А.Прыткова",null,null,null,null,null,null,null,null,null,null,null,null,null," "]
[]
[]
[null,null,null,null,null,null,null,null,null,null,null,null,null,null,null,null,null,null,null,null,null,null,null,null,null,null,null,null,null," ",null,null,null,null,null,null," "]